bitfinex/quotes_BTCUSD_20251001
["timestamp","ask_amount","ask_price","bid_price","bid_amount"]
[1759359079326,0.19314496,117940.0,117920.0,0.25470359]
[1759359079532,0.19607496,117940.0,117930.0,0.41143213]
[1759359080344,0.19607496,117940.0,117930.0,0.16959213]
[1759359080553,0.19607496,117940.0,117920.0,0.25470359]
[1759359080730,0.19607496,117940.0,117930.0,0.24184]
[1759359081114,0.19607496,117940.0,117930.0,0.41143213]
[1759359084221,0.02149721,117940.0,117930.0,0.41143213]
[1759359084424,0.0003,117940.0,117930.0,0.41143213]
[1759359085983,0.17522775,117940.0,117930.0,0.49947213]
[1759359086237,0.17522775,117940.0,117930.0,0.16959213]
[1759359086457,0.17522775,117940.0,117930.0,0.41127213]
[1759359087198,0.00565,117940.0,117930.0,0.41127213]
[1759359087646,0.00246,117940.0,117930.0,0.41127213]
[1759359087864,0.17203775,117940.0,117930.0,0.41127213]
[1759359088283,0.00246,117940.0,117930.0,0.41127213]
[1759359088662,0.17203775,117940.0,117930.0,0.41127213]
[1759359091121,0.17522775,117940.0,117930.0,0.41127213]
[1759359091318,0.17522775,117940.0,117930.0,0.16959213]
[1759359091598,0.17522775,117940.0,117930.0,0.41115213]
[1759359094340,0.17522775,117940.0,117930.0,0.41107213]
[1759359097720,0.17514384,117940.0,117930.0,0.41107213]
[1759359099910,0.19634105,117940.0,117930.0,0.24136]
[1759359100118,0.19634105,117940.0,117930.0,0.41095213]
[1759359101600,0.19634105,117940.0,117930.0,0.24136]
[1759359102123,0.19634105,117940.0,117930.0,0.41095213]
[1759359102329,0.19634105,117940.0,117930.0,0.24136]
[1759359103044,0.00556609,117940.0,117930.0,0.41095213]
[1759359103411,0.00237609,117940.0,117930.0,0.41095213]
[1759359105223,0.17195384,117940.0,117930.0,0.41095213]
[1759359105439,0.17514384,117940.0,117930.0,0.41095213]
[1759359105767,0.17195384,117940.0,117930.0,0.41095213]
[1759359106436,0.19634105,117940.0,117930.0,0.41095213]
[1759359112530,0.16959213,117930.0,117920.0,0.25470922]
[1759359112760,0.17462213,117930.0,117920.0,0.58398922]
[1759359112967,0.00503,117930.0,117920.0,0.58398922]
[1759359113127,0.17462213,117930.0,117920.0,0.25470922]
[1759359113331,0.00503,117930.0,117920.0,0.58398922]
[1759359113764,0.00503,117930.0,117920.0,0.49574922]
[1759359113976,0.00197,117930.0,117920.0,0.58394922]
[1759359114865,0.19405105,117940.0,117930.0,0.16959213]
[1759359115276,0.19602105,117940.0,117930.0,0.16959213]
[1759359116518,0.00021609,117940.0,117930.0,0.16959213]
[1759359117810,0.16979384,117940.0,117930.0,0.16959213]
[1759359118009,0.00021609,117940.0,117930.0,0.16959213]
[1759359118876,0.16979384,117940.0,117930.0,0.16959213]
[1759359119043,0.16979384,117940.0,117930.0,0.41059213]
[1759359119250,0.00021609,117940.0,117930.0,0.41059213]
[1759359119659,0.16979384,117940.0,117930.0,0.41059213]
[1759359120042,0.17176384,117940.0,117930.0,0.41059213]
[1759359120778,0.17482384,117940.0,117930.0,0.16959213]
[1759359120996,0.17482384,117940.0,117930.0,0.41055213]
[1759359123093,0.16979384,117940.0,117930.0,0.41055213]
[1759359123409,0.17176384,117940.0,117930.0,0.41055213]
[1759359123624,0.17482384,117940.0,117930.0,0.41055213]
[1759359128056,0.17482384,117940.0,117930.0,0.17324089]
[1759359128177,0.17482384,117940.0,117930.0,0.34283302]
[1759359133390,0.17482384,117940.0,117930.0,0.17324089]
[1759359134570,0.17482384,117940.0,117930.0,0.34283302]
[1759359134874,0.17482384,117940.0,117930.0,0.17324089]
[1759359135100,0.19602105,117940.0,117930.0,0.24068]
[1759359135788,0.16959213,117930.0,117920.0,0.43290651]
[1759359135997,0.17462213,117930.0,117920.0,0.67358651]
[1759359136231,0.17462213,117930.0,117920.0,0.43290651]
[1759359136473,0.17462213,117930.0,117920.0,0.67358651]
[1759359137130,0.00503,117930.0,117920.0,0.67358651]
[1759359137351,0.19405105,117940.0,117930.0,0.16959213]
[1759359137562,0.19602105,117940.0,117930.0,0.16959213]
[1759359138741,0.19602105,117940.0,117920.0,0.67358651]
[1759359140315,0.19602105,117940.0,117930.0,0.16959213]
[1759359141187,0.19602105,117940.0,117920.0,0.41028651]
[1759359141657,0.19602105,117940.0,117930.0,0.16959213]
[1759359141851,0.19602105,117940.0,117920.0,0.41028651]
[1759359143026,0.19602105,117940.0,117930.0,0.16959213]
[1759359145068,0.19602105,117940.0,117920.0,0.41028651]
[1759359145289,0.16959213,117930.0,117920.0,0.41028651]
[1759359145504,0.17273213,117930.0,117920.0,0.41028651]
[1759359145746,0.16959213,117930.0,117920.0,0.41028651]
[1759359146513,0.17160213,117930.0,117920.0,0.41028651]
[1759359148699,0.17474213,117930.0,117920.0,0.41012651]
[1759359149660,0.00515,117930.0,117920.0,0.41012651]
[1759359150701,0.19413105,117940.0,117930.0,0.16959213]
[1759359151265,0.19614105,117940.0,117930.0,0.16959213]
[1759359151898,0.19614105,117940.0,117920.0,0.41012651]
[1759359152828,0.16959213,117930.0,117920.0,0.41012651]
[1759359153022,0.17160213,117930.0,117920.0,0.41012651]
[1759359153963,0.00201,117930.0,117920.0,0.41012651]
[1759359155650,0.00515,117930.0,117920.0,0.41012651]
[1759359157504,0.00515,117930.0,117920.0,0.43559555]
[1759359157708,0.17474213,117930.0,117920.0,0.43559555]
[1759359159237,0.00515,117930.0,117920.0,0.43559555]
[1759359159649,0.00515,117930.0,117920.0,0.41012651]
[1759359162077,0.17474213,117930.0,117920.0,0.41012651]
[1759359162372,0.00515,117930.0,117920.0,0.41012651]
[1759359163638,0.17474213,117930.0,117920.0,0.16960651]
[1759359163828,0.17474213,117930.0,117920.0,0.40992651]
[1759359170477,0.00515,117930.0,117920.0,0.40988651]
[1759359170880,0.00201,117930.0,117920.0,0.40988651]
[1759359173553,0.19842288,117940.0,117930.0,0.16959213]
[1759359173974,0.20056288,117940.0,117930.0,0.16959213]
[1759359175091,0.20056288,117940.0,117920.0,0.40988651]
[1759359175912,0.20056288,117940.0,117920.0,0.16960651]
[1759359176060,0.20056288,117940.0,117930.0,0.24028]
[1759359178045,0.20056288,117940.0,117930.0,0.40987213]
[1759359180283,0.02568513,117940.0,117930.0,0.40987213]
[1759359180492,0.00021609,117940.0,117930.0,0.40987213]
[1759359181464,0.16979384,117940.0,117930.0,0.16959213]
[1759359181669,0.00021609,117940.0,117930.0,0.40987213]
[1759359182386,0.00021609,117940.0,117930.0,0.16959213]
[1759359182592,0.00021609,117940.0,117930.0,0.40987213]
[1759359190305,0.00021609,117940.0,117930.0,0.16959213]
[1759359190505,0.00021609,117940.0,117930.0,0.40987213]
[1759359191538,0.00021609,117940.0,117930.0,0.16959213]
[1759359191746,0.00021609,117940.0,117930.0,0.40987213]
[1759359200116,0.00021609,117940.0,117930.0,0.16959213]
[1759359200320,0.00021609,117940.0,117930.0,0.40987213]
[1759359200530,0.00021609,117940.0,117930.0,0.16959213]
[1759359200759,0.16979384,117940.0,117930.0,0.40987213]
[1759359200941,0.16979384,117940.0,117930.0,0.24028]
[1759359200942,0.17499384,117940.0,117930.0,0.24028]
[1759359201192,0.17499384,117940.0,117930.0,0.40987213]
[1759359201638,0.17499384,117940.0,117930.0,0.16959213]
[1759359201846,0.17499384,117940.0,117930.0,0.40987213]
[1759359204594,0.17190384,117940.0,117930.0,0.40987213]
[1759359206742,0.17499384,117940.0,117930.0,0.40987213]
[1759359208825,0.17499384,117940.0,117930.0,0.16959213]
[1759359209003,0.17499384,117940.0,117930.0,0.40983213]
[1759359209623,0.17190384,117940.0,117930.0,0.40983213]
[1759359210807,0.17499384,117940.0,117930.0,0.40983213]
[1759359213017,0.17190384,117940.0,117930.0,0.40983213]
[1759359216831,0.17499384,117940.0,117930.0,0.40983213]
[1759359217664,0.20046054,117940.0,117930.0,0.40983213]
[1759359226351,0.19737054,117940.0,117930.0,0.40983213]
[1759359226939,0.20046054,117940.0,117930.0,0.40983213]
[1759359240218,0.20046054,117940.0,117930.0,0.16959213]
[1759359240424,0.20046054,117940.0,117920.0,0.54657321]
[1759359240674,0.19737054,117940.0,117930.0,0.40979213]
[1759359241312,0.20049054,117940.0,117930.0,0.40979213]
[1759359241524,0.20049054,117940.0,117930.0,0.2402]
[1759359242975,0.16959213,117930.0,117920.0,0.25471651]
[1759359243204,0.17479213,117930.0,117920.0,0.25471651]
[1759359243408,0.17479213,117930.0,117920.0,0.49491651]
[1759359244356,0.17479213,117930.0,117920.0,0.40980651]
[1759359245904,0.17479213,117930.0,117920.0,0.16960651]
[1759359246105,0.17479213,117930.0,117920.0,0.40980651]
[1759359247765,0.17479213,117930.0,117920.0,0.16960651]
[1759359247972,0.17479213,117930.0,117920.0,0.40980651]
[1759359250560,0.0052,117930.0,117920.0,0.40980651]
[1759359251173,0.00208,117930.0,117920.0,0.40980651]
[1759359252917,0.17167213,117930.0,117920.0,0.40980651]
[1759359253345,0.17479213,117930.0,117920.0,0.40980651]
[1759359253791,0.17479213,117930.0,117920.0,0.16960651]
[1759359253998,0.17479213,117930.0,117920.0,0.40976651]
[1759359254202,0.0052,117930.0,117920.0,0.40976651]
[1759359256255,0.00208,117930.0,117920.0,0.40976651]
[1759359259266,0.0052,117930.0,117920.0,0.40976651]
[1759359266319,0.17479213,117930.0,117920.0,0.16960651]
[1759359266531,0.16960651,117920.0,117910.0,0.35297139]
[1759359266745,0.17486651,117920.0,117910.0,4.65e-05]
[1759359266956,0.17486651,117920.0,117910.0,0.2402065]
[1759359267380,0.02547235,117920.0,117910.0,0.58906608]
[1759359267827,0.18145272,117940.0,117920.0,0.16959599]
[1759359268036,0.18145272,117940.0,117930.0,0.24016]
[1759359268251,0.18353272,117940.0,117930.0,0.24016]
[1759359268872,0.2090018,117940.0,117930.0,0.24016]
[1759359273738,0.16959213,117930.0,117920.0,0.16959599]
[1759359273950,0.17167213,117930.0,117920.0,0.40975599]
[1759359274163,0.17485213,117930.0,117920.0,0.40975599]
[1759359274593,0.20032121,117930.0,117920.0,0.40975599]
[1759359274818,0.20032121,117930.0,117920.0,0.17265497]
[1759359275043,0.20032121,117930.0,117920.0,0.34225096]
[1759359276151,0.00021609,117940.0,117930.0,0.16959213]
[1759359277030,0.16979384,117940.0,117930.0,0.16959213]
[1759359277262,0.16979384,117940.0,117930.0,0.40975213]
[1759359280800,0.16979384,117940.0,117930.0,0.40971213]
[1759359281215,0.17187384,117940.0,117930.0,0.40971213]
[1759359282159,0.17187384,117940.0,117930.0,0.16959213]
[1759359282364,0.17187384,117940.0,117930.0,0.40971213]
[1759359283413,0.17187384,117940.0,117930.0,0.16959213]
[1759359283591,0.17505384,117940.0,117930.0,0.16959213]
[1759359283922,0.19625105,117940.0,117930.0,0.16959213]
[1759359284094,0.19625105,117940.0,117920.0,0.67301599]
[1759359284278,0.19625105,117940.0,117920.0,0.43289599]
[1759359284279,0.17277213,117930.0,117920.0,0.43289599]
[1759359284480,0.17485213,117930.0,117920.0,0.67301599]
[1759359284675,0.17485213,117930.0,117920.0,0.43289599]
[1759359284893,0.17485213,117930.0,117920.0,0.67301599]
[1759359285763,0.00526,117930.0,117920.0,0.67301599]
[1759359285969,0.00526,117930.0,117920.0,0.40971599]
[1759359291552,0.19424105,117940.0,117930.0,0.16959213]
[1759359292017,0.19626105,117940.0,117930.0,0.16959213]
[1759359292826,0.19626105,117940.0,117920.0,0.40971599]
[1759359293029,0.00325,117930.0,117920.0,0.40971599]
[1759359293247,0.17486213,117930.0,117920.0,0.40971599]
[1759359293855,0.17486213,117930.0,117920.0,0.40959978]
[1759359294382,0.00527,117930.0,117920.0,0.40959978]
[1759359294600,0.17486213,117930.0,117920.0,0.40959978]
[1759359295083,0.17486213,117930.0,117920.0,0.16947978]
[1759359295289,0.17486213,117930.0,117920.0,0.40959978]
[1759359295797,0.00527,117930.0,117920.0,0.40959978]
[1759359296207,0.00527,117930.0,117910.0,0.52709608]
[1759359296208,0.17486213,117930.0,117910.0,0.52709608]
[1759359296418,0.17161213,117930.0,117920.0,0.24008]
[1759359297060,0.17486213,117930.0,117920.0,0.24008]
[1759359297471,0.17486213,117930.0,117920.0,0.40968651]
[1759359304700,0.21017562,117930.0,117910.0,0.41243329]
[1759359304924,0.17285651,117920.0,117910.0,0.32732329]
[1759359305150,0.19607732,117920.0,117910.0,0.5034265]
[1759359305371,0.19607732,117920.0,117910.0,0.2401265]
[1759359305590,0.19607732,117920.0,117910.0,0.40974739]
[1759359305820,0.19607732,117920.0,117910.0,0.16966739]
[1759359306032,0.19607732,117920.0,117910.0,0.40974739]
[1759359306877,0.19607732,117920.0,117910.0,0.16966739]
[1759359307103,0.19607732,117920.0,117910.0,0.40974739]
[1759359307997,0.19607732,117920.0,117910.0,0.16966739]
[1759359308309,0.19607732,117920.0,117910.0,0.40974739]
[1759359309233,0.19607732,117920.0,117910.0,0.2401265]
[1759359309439,0.19607732,117920.0,117910.0,0.40974739]
[1759359310090,0.19607732,117920.0,117910.0,0.16966739]
[1759359310318,0.19607732,117920.0,117910.0,0.40974739]
[1759359311555,0.20374429,117940.0,117920.0,0.16959556]
[1759359311556,0.18152272,117940.0,117920.0,0.16959556]
[1759359311750,0.18152272,117940.0,117930.0,0.24012]
[1759359311987,0.18354272,117940.0,117930.0,0.24012]
[1759359312403,0.24627771,117940.0,117930.0,0.24012]
[1759359313826,0.18354272,117940.0,117930.0,0.24012]
[1759359315956,0.16959213,117930.0,117920.0,0.40971556]
[1759359316175,0.17486213,117930.0,117920.0,0.40971556]
[1759359316690,0.17161213,117930.0,117920.0,0.40971556]
[1759359317282,0.17486213,117930.0,117920.0,0.40971556]
[1759359318871,0.16959213,117930.0,117920.0,0.40971556]
[1759359319423,0.17161213,117930.0,117920.0,0.40971556]
[1759359321095,0.17161213,117930.0,117920.0,0.16959556]
[1759359321323,0.17467213,117930.0,117920.0,0.40967556]
[1759359321524,0.17467213,117930.0,117920.0,0.24008]
[1759359321770,0.17467213,117930.0,117920.0,0.40968651]
[1759359321942,0.17467213,117930.0,117910.0,0.54822929]
[1759359322371,0.17266651,117920.0,117910.0,0.54822929]
[1759359322582,0.00512,117920.0,117910.0,0.78830929]
[1759359323476,0.17472651,117920.0,117910.0,0.43296739]
[1759359323682,0.17472651,117920.0,117910.0,0.67304739]
[1759359326576,0.17472651,117920.0,117910.0,0.2633465]
[1759359326999,0.17472651,117920.0,117910.0,0.67304739]
[1759359327209,0.19592732,117920.0,117910.0,0.2633465]
[1759359327421,0.19592732,117920.0,117910.0,0.5034265]
[1759359327628,0.19592732,117920.0,117910.0,0.2401265]
[1759359328254,0.19592732,117920.0,117910.0,0.00212977]
[1759359330275,0.19592732,117920.0,117910.0,0.24008]
[1759359332812,0.17166651,117920.0,117910.0,0.24008]
[1759359333134,0.17472651,117920.0,117910.0,0.40970089]
[1759359333516,0.16962089,117910.0,117900.0,0.23422824]
[1759359333721,0.1747873,117910.0,117900.0,0.47430824]
[1759359335443,0.1747873,117910.0,117900.0,0.23422824]
[1759359335683,0.1747873,117910.0,117900.0,0.47430824]
[1759359337360,4.641e-05,117910.0,117900.0,0.58957014]
[1759359338478,4.641e-05,117910.0,117900.0,0.55941824]
[1759359340165,4.641e-05,117910.0,117900.0,0.58957014]
[1759359342091,4.641e-05,117910.0,117900.0,0.34949014]
[1759359342302,4.641e-05,117910.0,117900.0,0.67781014]
[1759359343091,0.1696673,117910.0,117900.0,0.58961014]
[1759359343298,4.641e-05,117910.0,117900.0,0.58961014]
[1759359347570,4.641e-05,117910.0,117900.0,0.61507704]
[1759359351257,4.641e-05,117910.0,117900.0,0.87837704]
[1759359353847,4.641e-05,117910.0,117900.0,0.87795459]
[1759359360530,4.641e-05,117910.0,117900.0,0.63783459]
[1759359360732,4.641e-05,117910.0,117900.0,0.96615459]
[1759359361793,4.641e-05,117910.0,117900.0,0.96611459]
[1759359367238,4.641e-05,117910.0,117900.0,0.87791459]
[1759359367444,4.641e-05,117910.0,117900.0,0.96611459]
[1759359369599,4.641e-05,117910.0,117900.0,0.87791459]
[1759359369811,4.641e-05,117910.0,117900.0,0.96611459]
[1759359390291,4.641e-05,117910.0,117900.0,1.29557665]
[1759359410658,4.641e-05,117910.0,117900.0,0.96729665]
[1759359410873,4.641e-05,117910.0,117900.0,1.29553665]
[1759359431486,4.641e-05,117910.0,117900.0,1.06173086]
[1759359431696,4.641e-05,117910.0,117900.0,1.23136614]
[1759359433191,4.641e-05,117910.0,117900.0,1.2959591]
[1759359444888,0.00214641,117910.0,117900.0,0.9677191]
[1759359445098,0.00507641,117910.0,117900.0,1.2959191]
[1759359446357,0.00214641,117910.0,117900.0,1.2959191]
[1759359446500,4.641e-05,117910.0,117900.0,1.2959191]
[1759359450326,4.641e-05,117910.0,117900.0,0.96645704]
[1759359455664,4.641e-05,117910.0,117900.0,1.29593691]
[1759359472828,4.641e-05,117910.0,117900.0,1.29585691]
[1759359473248,0.00202641,117910.0,117900.0,1.29585691]
[1759359473777,4.641e-05,117910.0,117900.0,1.29585691]
[1759359476682,0.00496641,117910.0,117900.0,0.60810514]
[1759359476890,0.1745873,117910.0,117900.0,0.34480514]
[1759359477112,0.22126118,117910.0,117900.0,0.47414824]
[1759359477323,0.20005857,117910.0,117900.0,0.23422824]
[1759359477529,0.20005857,117910.0,117900.0,0.47414824]
[1759359478698,0.20005857,117910.0,117900.0,0.30451296]
[1759359479464,0.20005857,117910.0,117900.0,0.06459296]
[1759359479665,0.20005857,117910.0,117900.0,0.23992]
[1759359479867,0.20005857,117910.0,117900.0,0.40955528]
[1759359482468,0.20005857,117910.0,117900.0,0.47475263]
[1759359483447,0.02749768,117910.0,117900.0,0.55986263]
[1759359483656,0.02749768,117910.0,117900.0,1.2594944]
[1759359483657,4.641e-05,117910.0,117900.0,1.2594944]
[1759359484084,4.641e-05,117910.0,117900.0,1.28496158]
[1759359490260,0.1745873,117910.0,117900.0,0.02546718]
[1759359490474,0.16963528,117900.0,117890.0,0.02515979]
[1759359490683,0.19575969,117900.0,117890.0,0.02515979]
[1759359490912,0.16964967,117890.0,117880.0,0.47236685]
[1759359491123,0.17456967,117890.0,117880.0,0.31756451]
[1759359491342,0.17456967,117890.0,117870.0,0.19696441]
[1759359491548,0.00294,117880.0,117870.0,0.28207441]
[1759359491752,0.00492,117880.0,117870.0,0.86267441]
[1759359491969,0.00492,117880.0,117870.0,0.89282631]
[1759359492184,0.00492,117880.0,117870.0,0.62207441]
[1759359492399,0.00492,117880.0,117870.0,0.86267441]
[1759359492610,0.00492,117880.0,117870.0,0.28207441]
[1759359492611,0.17458406,117880.0,117870.0,0.28207441]
[1759359492820,0.17458406,117880.0,117870.0,0.49719962]
[1759359493233,0.17458406,117880.0,117870.0,0.52735152]
[1759359494085,0.17458406,117880.0,117870.0,0.53911826]
[1759359494721,0.20006199,117880.0,117870.0,0.53911826]
[1759359498307,0.20006199,117880.0,117870.0,0.50892636]
[1759359499376,0.20006199,117880.0,117870.0,0.50888636]
[1759359499576,0.20006199,117880.0,117870.0,0.33926012]
[1759359499782,0.20006199,117880.0,117870.0,0.25415012]
[1759359501498,0.20006199,117880.0,117870.0,0.42382857]
[1759359501705,0.20006199,117880.0,117870.0,0.25415012]
[1759359502333,0.20006199,117880.0,117870.0,0.01363012]
[1759359502558,0.20006199,117880.0,117870.0,0.25415012]
[1759359505441,0.20006199,117880.0,117870.0,0.24238338]
[1759359506510,0.20006199,117880.0,117870.0,0.25452124]
[1759359506887,0.20006199,117880.0,117870.0,0.24238338]
[1759359507318,0.20006199,117880.0,117870.0,0.00186338]
[1759359507319,0.23703316,117880.0,117870.0,0.00186338]
[1759359507524,0.44058199,117880.0,117870.0,0.00186338]
[1759359507952,0.86569199,117880.0,117870.0,3.38e-06]
[1759359508570,0.86573199,117880.0,117870.0,3.38e-06]
[1759359508771,0.95397199,117880.0,117870.0,3.38e-06]
[1759359508979,1.04268346,117880.0,117870.0,3.38e-06]
[1759359514089,0.71388346,117880.0,117870.0,3.38e-06]
[1759359514314,1.04264346,117880.0,117870.0,3.38e-06]
[1759359514725,0.71388346,117880.0,117870.0,3.38e-06]
[1759359514935,1.04264346,117880.0,117870.0,3.38e-06]
[1759359515346,1.06083098,117880.0,117870.0,3.38e-06]
[1759359517992,1.03535305,117880.0,117870.0,3.38e-06]
[1759359518379,0.94707305,117880.0,117870.0,3.38e-06]
[1759359518682,1.03531305,117880.0,117870.0,3.38e-06]
[1759359520964,1.03527305,117880.0,117870.0,3.38e-06]
[1759359528871,0.70659305,117880.0,117870.0,3.38e-06]
[1759359529101,1.03519305,117880.0,117870.0,3.38e-06]
[1759359531246,1.0431176,117880.0,117870.0,3.38e-06]
[1759359532449,0.7145176,117880.0,117870.0,3.38e-06]
[1759359532661,1.0430776,117880.0,117870.0,3.38e-06]
[1759359537174,1.08950149,117880.0,117870.0,3.38e-06]
[1759359539590,1.08951742,117880.0,117870.0,3.38e-06]
[1759359539831,0.16970725,117850.0,117840.0,0.1697206]
[1759359540046,0.19092065,117850.0,117840.0,0.1697206]
[1759359540265,0.19288065,117850.0,117840.0,0.00203]
[1759359540486,0.19611065,117850.0,117830.0,0.18387648]
[1759359540712,0.19611065,117850.0,117830.0,0.26740648]
[1759359541172,0.19615702,117850.0,117830.0,0.26898648]
[1759359541621,0.19615702,117850.0,117830.0,0.28006904]
[1759359542562,0.16972165,117840.0,117830.0,0.01108256]
[1759359542779,0.19416685,117840.0,117830.0,0.01108256]
[1759359542984,0.19612685,117840.0,117820.0,0.78849154]
[1759359543221,0.19612685,117840.0,117820.0,0.87360154]
[1759359543406,0.19612685,117840.0,117830.0,0.16973606]
[1759359543644,0.19289685,117840.0,117830.0,0.17176606]
[1759359543851,0.19612685,117840.0,117830.0,0.00203]
[1759359544053,0.19612685,117840.0,117820.0,0.87518154]
[1759359545216,0.19612685,117840.0,117820.0,0.62649402]
[1759359545563,0.19612685,117840.0,117820.0,0.6896284]
[1759359545775,0.19612685,117840.0,117820.0,0.70098218]
[1759359545985,0.19612685,117840.0,117830.0,0.0008616]
[1759359548703,0.47372343,117840.0,117830.0,0.0008616]
[1759359548920,0.41507165,117840.0,117830.0,0.0008616]
[1759359549359,0.17491165,117840.0,117830.0,0.0008616]
[1759359549552,0.43628685,117840.0,117830.0,0.0008616]
[1759359549767,0.41507165,117840.0,117830.0,0.0008616]
[1759359549970,0.17491165,117840.0,117830.0,0.0008616]
[1759359550172,0.43632685,117840.0,117830.0,0.0008616]
[1759359550376,0.41511165,117840.0,117830.0,0.0008616]
[1759359550773,0.17491165,117840.0,117830.0,0.0008616]
[1759359550974,0.23144191,117840.0,117830.0,0.0008616]
[1759359551184,0.41511165,117840.0,117830.0,0.0008616]
[1759359552318,0.17491165,117840.0,117830.0,0.0008616]
[1759359552499,0.43632685,117840.0,117830.0,0.0008616]
[1759359552721,0.41511165,117840.0,117830.0,0.0008616]
[1759359553661,0.41507165,117840.0,117830.0,0.0008616]
[1759359554079,0.17491165,117840.0,117830.0,0.0008616]
[1759359554290,0.19612685,117840.0,117830.0,0.0008616]
[1759359554525,0.43628685,117840.0,117830.0,0.0008616]
[1759359554719,0.41507165,117840.0,117830.0,0.0008616]
[1759359558855,0.48323071,117840.0,117830.0,0.0008616]
[1759359559061,0.41507165,117840.0,117830.0,0.0008616]
[1759359559271,0.50018165,117840.0,117830.0,0.0008616]
[1759359560216,0.84018165,117840.0,117830.0,0.0008616]
[1759359564078,0.84022165,117840.0,117830.0,0.0008616]
[1759359564282,0.92850165,117840.0,117830.0,0.0008616]
[1759359564403,1.01721312,117840.0,117830.0,0.0008616]
[1759359565924,0.92893312,117840.0,117830.0,0.0008616]
[1759359566167,0.92850165,117840.0,117830.0,0.0008616]
[1759359566339,0.93998458,117840.0,117830.0,0.0008616]
[1759359566545,0.60002165,117840.0,117830.0,0.0008616]
[1759359566798,0.92850165,117840.0,117830.0,0.0008616]
[1759359566948,0.60002165,117840.0,117830.0,0.0008616]
[1759359567141,1.00887717,117840.0,117830.0,0.0008616]
[1759359567745,0.68039717,117840.0,117830.0,0.0008616]
[1759359567948,0.92850165,117840.0,117830.0,0.0008616]
[1759359569277,0.84022165,117840.0,117830.0,0.0008616]
[1759359569515,0.60002165,117840.0,117830.0,0.0008616]
[1759359569702,0.92850165,117840.0,117830.0,0.0008616]
[1759359570109,1.01721312,117840.0,117830.0,0.0008616]
[1759359570309,1.03544917,117840.0,117830.0,0.0008616]
[1759359570634,1.03884874,117840.0,117830.0,0.0008616]
[1759359571058,0.50975046,117820.0,117810.0,0.0004]
[1759359571268,0.59486046,117820.0,117810.0,0.0004]
[1759359571424,0.92859046,117820.0,117810.0,0.0004]
[1759359571641,0.92859046,117820.0,117810.0,0.00083096]
[1759359571848,0.9319906,117820.0,117810.0,0.00083096]
[1759359572445,0.6034706,117820.0,117810.0,0.00083096]
[1759359572650,0.9319906,117820.0,117810.0,0.00083096]
[1759359573094,0.6034706,117820.0,117810.0,0.00083096]
[1759359573324,0.92859046,117820.0,117810.0,0.00083096]
[1759359574344,1.01282763,117820.0,117810.0,0.00083096]
[1759359575759,0.84035046,117820.0,117810.0,0.00083096]
[1759359575990,0.92863046,117820.0,117810.0,0.00083096]
[1759359577230,0.84035046,117820.0,117810.0,0.00083096]
[1759359577976,0.85858107,117820.0,117810.0,0.00083096]
[1759359579237,0.85858107,117820.0,117810.0,0.17421583]
[1759359579238,0.01823061,117820.0,117810.0,0.17421583]
[1759359579468,0.39052773,117840.0,117820.0,0.16975046]
[1759359579685,0.40875834,117840.0,117830.0,0.00204]
[1759359579924,0.01823061,117840.0,117830.0,0.17335606]
[1759359580136,0.22657709,117850.0,117840.0,0.16972165]
[1759359580357,0.19524434,117850.0,117840.0,0.17334165]
[1759359580561,0.16975362,117850.0,117840.0,0.17176165]
[1759359580765,0.19096702,117850.0,117840.0,0.17176165]
[1759359580975,0.19096702,117850.0,117840.0,0.16972165]
[1759359581200,0.16972284,117840.0,117820.0,0.16996592]
[1759359581428,0.00197,117830.0,117820.0,0.28522782]
[1759359582499,0.0212152,117840.0,117830.0,0.19988796]
[1759359582698,0.16975362,117850.0,117840.0,0.16972165]
[1759359582930,0.19096702,117850.0,117840.0,0.17176165]
[1759359583332,0.19293702,117850.0,117840.0,0.16972165]
[1759359584749,0.02322977,117850.0,117840.0,0.16972165]
[1759359584949,0.19293702,117850.0,117840.0,0.16972165]
[1759359585807,0.19617702,117850.0,117840.0,0.16972165]
[1759359587505,0.19617702,117850.0,117830.0,0.49740606]
[1759359588003,0.19617702,117850.0,117820.0,0.29366736]
[1759359588004,0.17296165,117840.0,117820.0,0.29366736]
[1759359588235,0.00197,117830.0,117820.0,0.72643589]
[1759359588439,0.16972165,117840.0,117830.0,0.17177606]
[1759359589036,0.16972165,117840.0,117830.0,0.16973606]
[1759359589373,0.19093685,117840.0,117830.0,0.16973606]
[1759359589507,0.18147898,117850.0,117830.0,0.16973606]
[1759359589692,0.16972165,117840.0,117830.0,0.16973606]
[1759359591065,0.19093685,117840.0,117830.0,0.16973606]
[1759359591622,0.16972165,117840.0,117830.0,0.17188606]
[1759359592177,0.16972165,117840.0,117830.0,0.16973606]
[1759359592546,0.17188165,117840.0,117830.0,0.16973606]
[1759359592751,0.17484165,117840.0,117830.0,0.16973606]
[1759359593367,0.16973606,117830.0,117820.0,0.44279782]
[1759359593613,0.17268165,117840.0,117820.0,0.44494782]
[1759359593819,0.19389685,117840.0,117820.0,0.44494782]
[1759359594034,0.00216,117830.0,117820.0,0.44494782]
[1759359595000,0.17189606,117830.0,117820.0,0.44494782]
[1759359595857,0.17189606,117830.0,117820.0,0.4648005]
[1759359597485,0.00216,117830.0,117820.0,0.4648005]
[1759359598122,0.19389685,117840.0,117820.0,0.4648005]
[1759359598321,0.19093685,117840.0,117830.0,0.16973606]
[1759359598731,0.19605685,117840.0,117830.0,0.16973606]
[1759359599367,0.19605685,117840.0,117820.0,0.4626505]
[1759359600264,0.16973606,117830.0,117820.0,0.05022004]
[1759359600453,0.17269606,117830.0,117820.0,0.4625305]
[1759359600668,0.17485606,117830.0,117820.0,0.4625305]
[1759359601118,0.17485606,117830.0,117820.0,0.4323786]
[1759359601304,0.17485606,117830.0,117820.0,0.02006814]
[1759359601537,0.19607306,117830.0,117820.0,0.26262814]
[1759359602088,0.17485606,117830.0,117820.0,0.26262814]
[1759359602293,0.19607306,117830.0,117820.0,0.26262814]
[1759359602739,0.19607306,117830.0,117820.0,0.00021546]
[1759359603026,0.19607306,117830.0,117820.0,0.41252592]
[1759359603197,0.17823898,117850.0,117840.0,0.16972165]
[1759359603415,0.17823898,117850.0,117840.0,0.17345165]
[1759359603640,0.17823898,117850.0,117840.0,0.17187165]
[1759359604077,0.18335898,117850.0,117840.0,0.24264]
[1759359604483,0.18335898,117850.0,117840.0,0.41236165]
[1759359605167,0.18335898,117850.0,117840.0,0.24264]
[1759359606446,0.18335898,117850.0,117840.0,0.41236165]
[1759359609062,0.18335898,117850.0,117840.0,0.24264]
[1759359609480,0.18335898,117850.0,117840.0,0.41236165]
[1759359610302,0.18335898,117850.0,117840.0,0.24264]
[1759359610945,0.18335898,117850.0,117830.0,0.43302217]
[1759359611163,0.16972165,117840.0,117830.0,0.54828407]
[1759359611340,0.16972165,117840.0,117830.0,0.79291407]
[1759359611589,0.18119898,117850.0,117830.0,0.79291407]
[1759359611999,0.18119898,117850.0,117840.0,0.16972165]
[1759359612207,0.18335898,117850.0,117840.0,0.16972165]
[1759359612823,0.18335898,117850.0,117830.0,0.79076407]
[1759359613806,0.18335898,117850.0,117840.0,0.16972165]
[1759359614440,0.18335898,117850.0,117830.0,0.79076407]
[1759359614857,0.16972165,117840.0,117830.0,0.54828407]
[1759359615077,0.16972165,117840.0,117830.0,0.79287407]
[1759359615284,0.18119898,117850.0,117830.0,0.79287407]